fUST/lending_fUST_20260107
["ID","MTS","AMOUNT","RATE_DAILY","PERIOD"]
[400621211,1767748242724,-151.0,0.000249,7]
[400621213,1767748242734,-151.0,0.000249,7]
[400621215,1767748242744,-406.779852,0.000249,7]
[400621217,1767748242754,-406.779852,0.000249,7]
[400621219,1767748242763,-406.779852,0.000249,7]
[400621221,1767748242773,-406.779852,0.000249,7]
[400621223,1767748242783,-151.0,0.000249,7]
[400621225,1767748242792,-151.0,0.000249,7]
[400621227,1767748242802,-631081.21536,0.000249,2]
[400621229,1767748242811,-235.440161,0.000249,7]
[400621231,1767748242821,-153.743312,0.000249,7]
[400621233,1767748242832,-153.772571,0.000249,7]
[400621235,1767748242841,-2600.0,0.000249,7]
[400621237,1767748242851,-151.0,0.000249,7]
[400621239,1767748242860,-2600.0,0.000249,7]
[400621241,1767748242871,-2600.0,0.000249,7]
[400621243,1767748242883,-151.0,0.000249,7]
[400621245,1767748242892,-254.925967,0.000249,7]
[400621247,1767748242901,-2600.0,0.000249,7]
[400621249,1767748242910,-151.0,0.000249,7]
[400621251,1767748242919,-151.0,0.000249,7]
[400621253,1767748242930,-225.687069,0.000249,7]
[400621255,1767748242940,-225.687069,0.000249,7]
[400621257,1767748242949,-225.687069,0.000249,7]
[400621259,1767748242960,-225.687069,0.000249,7]
[400621261,1767748242969,-151.0,0.000249,7]
[400621263,1767748242979,-151.0,0.000249,7]
[400621266,1767748242989,-151.0,0.000249,7]
[400621268,1767748242999,-209.921789,0.000249,7]
[400621269,1767748243008,-151.0,0.000249,7]
[400621271,1767748243018,-151.0,0.000249,7]
[400621273,1767748243027,-209.921789,0.000249,7]
[400621275,1767748243036,-209.921789,0.000249,7]
[400621277,1767748243046,-209.921789,0.000249,7]
[400621279,1767748243056,-151.0,0.000249,7]
[400621281,1767748243066,-151.0,0.000249,7]
[400621283,1767748243076,-151.0,0.000249,7]
[400621285,1767748243085,-218.49281574,0.00024926,2]
[400621287,1767748243094,-873.0972917,0.00024926,2]
[400621290,1767748243104,-399.39506439,0.00024926,2]
[400621292,1767748243113,-1597.58025755,0.00024926,2]
[400621294,1767748243122,-3594.55557948,0.00024926,2]
[400621296,1767748243132,-6390.32103019,0.00024926,2]
[400621298,1767748243141,-9984.87660968,0.00024926,2]
[400621300,1767748243151,-619.32395584,0.00024926,2]
[400621302,1767748243160,-2477.29582334,0.00024926,2]
[400621304,1767748243169,-5573.91560252,0.00024926,2]
[400621306,1767748243178,-500.0,0.00024932,2]
[400621308,1767748243188,-201.0,0.00024938,2]
[400621310,1767748243197,-201.0,0.00024945,2]
[400621312,1767748243207,-2300.0,0.00024979,2]
[400621314,1767748243215,-1018.0,0.00025,2]
[400621316,1767748243224,-2300.0,0.00025003,7]
[400621318,1767748243234,-500.0,0.00025069,2]
[400621320,1767748243249,-2000.0,0.00025116,7]
[400621322,1767748243258,-201.0,0.00025138,2]
[400621324,1767748243267,-250.0,0.00025205,2]
[400621326,1767748243277,-880.39814706,0.00025205,2]
[400621328,1767748243287,-500.0,0.00025206,2]
[400621330,1767748243296,-201.0,0.00025273,2]
[400621332,1767748243305,-1000.0,0.00025281,10]
[400621334,1767748243314,-1000.0,0.00025281,10]
[400621336,1767748243323,-569.05,0.000253,2]
[400621338,1767748243332,-2362.32,0.000253,7]
[400621340,1767748243342,-181.138598,0.00025314,7]
[400621341,1767748243351,-251.46189,0.00025314,7]
[400621343,1767748243360,-151.0,0.00025314,7]
[400621345,1767748243371,-151.0,0.00025314,7]
[400621347,1767748243391,-151.0,0.00025314,7]
[400621360,1767748243509,-238.965673,0.00025314,7]
[400621362,1767748243519,-238.965673,0.00025314,7]
[400621364,1767748243529,-238.965673,0.00025314,7]
[400621366,1767748243538,-238.965673,0.00025314,7]
[400621368,1767748243548,-239.892767,0.00025342,2]
[400621370,1767748243557,-500.0,0.00025343,2]
[400621372,1767748243567,-2300.0,0.00025348,7]
[400621374,1767748243576,-7840.45558332,0.00025387,2]
[400621376,1767748243586,-2300.0,0.00025393,7]
[400621378,1767748243596,-265.0,0.000254,60]
[400621380,1767748243605,-201.0,0.00025438,2]
[400621382,1767748243614,-2300.0,0.00025474,7]
[400621384,1767748243624,-500.0,0.0002548,2]
[400621386,1767748243633,-201.0,0.00025531,2]
[400621388,1767748243642,-151.0,0.00025588,7]
[400621390,1767748243652,-151.0,0.00025588,7]
[400621392,1767748243663,-151.0,0.00025588,7]
[400621394,1767748243673,-151.0,0.00025588,7]
[400621396,1767748243683,-151.0,0.00025588,7]
[400621398,1767748243692,-151.0,0.00025588,7]
[400621400,1767748243702,-201.0,0.00025589,2]
[400621402,1767748243712,-500.0,0.00025617,2]
[400621404,1767748243721,-201.0,0.00025627,2]
[400621406,1767748243730,-2376.58140565,0.00025636,22]
[400621408,1767748243739,-201.0,0.00025668,2]
[400621410,1767748243749,-151.0,0.00025676,7]
[400621412,1767748243759,-151.0,0.00025676,7]
[400621414,1767748243768,-151.0,0.00025676,7]
[400621416,1767748243777,-151.0,0.00025676,7]
[400621418,1767748243787,-151.0,0.00025676,7]
[400621420,1767748243797,-350.0,0.00025753,2]
[400621422,1767748243806,-500.0,0.00025754,2]
[400621424,1767748243816,-500.0,0.00025764,7]
[400621426,1767748243825,-18704.7,0.000258,2]
[400621428,1767748243835,-504.0,0.00025891,2]
[400621430,1767748243845,-2000.0,0.00025992,7]
[400621432,1767748243855,-201.0,0.00026,2]
[400621434,1767748243865,-1018.0,0.00026,2]
[400621436,1767748243875,-201.0,0.00026032,2]
[400621438,1767748243884,-418.0,0.00026048,2]
[400621440,1767748243893,-201.0,0.00026058,2]
[400621442,1767748243903,-201.0,0.00026122,2]
[400621444,1767748243912,-201.0,0.000262,2]
[400621446,1767748243921,-450.0,0.00026301,2]
[400621448,1767748243931,-201.0,0.00026326,2]
[400621450,1767748243941,-2300.0,0.0002633,7]
[400621452,1767748243950,-500.0,0.00026349,7]
[400621454,1767748243960,-174.0,0.00026356,20]
[400621456,1767748243969,-500.0,0.0002647,7]
[400621458,1767748243979,-195.72,0.000266,7]
[400621460,1767748243988,-240.34,0.000266,7]
[400621462,1767748243998,-2089.8,0.000266,14]
[400621464,1767748244007,-250.0,0.000266,7]
[400621466,1767748244017,-250.0,0.000266,7]
[400621468,1767748244026,-250.0,0.000266,7]
[400621470,1767748244035,-250.0,0.000266,7]
[400621472,1767748244044,-206.8,0.000266,7]
[400621474,1767748244053,-2300.0,0.00026637,7]
[400621476,1767748244062,-375.25605193,0.00026672,2]
[400621478,1767748244071,-7782.06328201,0.00026767,2]
[400621480,1767748244080,-550.0,0.00026849,2]
[400621482,1767748244089,-2000.0,0.00026867,7]
[400621484,1767748244098,-2300.0,0.00026982,7]
[400621486,1767748244108,-166.0,0.00027,7]
[400621488,1767748244118,-184.0,0.00027,7]
[400621490,1767748244127,-1018.0,0.00027,2]
[400621492,1767748244136,-2678.40236552,0.00027076,25]
[400621493,1767748244146,-223.81332617,0.00027397,2]
[400621495,1767748244155,-156.66932831,0.00027397,2]
[400621497,1767748244164,-1603.97,0.00027397,2]
[400621499,1767748244173,-650.0,0.00027397,5]
[400621501,1767748244182,-153.720433,0.00027397,7]
[400621503,1767748244191,-500.0,0.00027397,5]
[400621505,1767748244201,-514.72943371,0.00027397,5]
[400621507,1767748244210,-2362.32,0.000274,7]
[400621509,1767748244219,-500.0,0.00027413,7]
[400621511,1767748244229,-418.0,0.00027678,2]
[400621513,1767748244238,-2000.0,0.00027743,7]
[400621515,1767748244248,-500.0,0.00027745,7]
[400621517,1767748244259,-7840.45558332,0.00027786,2]
[400621519,1767748244269,-1000.0,0.0002781,30]
[400621521,1767748244278,-1000.0,0.0002781,30]
[400621523,1767748244288,-579.0,0.0002781,30]
[400621525,1767748244298,-500.0,0.00027859,7]
[400621527,1767748244307,-18704.7,0.000279,2]
[400621529,1767748244317,-750.0,0.00027945,5]
[400621531,1767748244326,-1000.0,0.00027945,5]
[400621533,1767748244335,-250.0,0.00027945,5]
[400621535,1767748244345,-250.0,0.00027945,5]
[400621537,1767748244354,-150.5,0.00028,21]
[400621539,1767748244364,-569.05,0.00028,2]
[400621541,1767748244373,-1018.0,0.00028,2]
[400621543,1767748244383,-500.0,0.00028353,2]
[400621545,1767748244393,-500.0,0.00028353,2]
[400621547,1767748244403,-250.0,0.00028353,2]
[400621549,1767748244412,-284.39885642,0.00028353,2]
[400621551,1767748244422,-500.0,0.00028353,2]
[400621553,1767748244431,-500.0,0.00028353,2]
[400621555,1767748244443,-151.0,0.00028353,2]
[400621557,1767748244455,-500.0,0.00028353,2]
[400621559,1767748244465,-500.0,0.00028353,2]
[400621561,1767748244474,-500.0,0.00028353,2]
[400621563,1767748244483,-500.0,0.00028353,2]
[400621565,1767748244493,-500.0,0.00028353,2]
[400621567,1767748244502,-500.0,0.00028353,2]
[400621569,1767748244511,-500.0,0.00028353,2]
[400621571,1767748244521,-1529.66585057,0.00028353,2]
[400621573,1767748244530,-500.0,0.00028353,2]
[400621574,1767748244539,-500.0,0.00028353,2]
[400621575,1767748244549,-500.0,0.00028353,2]
[400621576,1767748244558,-500.0,0.00028353,2]
[400621577,1767748244566,-640.58960857,0.00028353,2]
[400621578,1767748244575,-23948.39964633,0.00028353,2]
[400621579,1767748244584,-514.84070869,0.00028353,2]
[400621580,1767748244593,-2300.0,0.00028382,7]
[400621581,1767748244602,-850.0,0.00028493,5]
[400621582,1767748244611,-1344.52633851,0.00028493,5]
[400621583,1767748244620,-350.0,0.00028493,5]
[400621584,1767748244630,-350.0,0.00028493,5]
[400621585,1767748244639,-2989.53212978,0.00028517,27]
[400621586,1767748244648,-2300.0,0.00028536,7]
[400621587,1767748244657,-158.0,0.00028548,29]
[400621588,1767748244668,-500.0,0.00028577,7]
[400621589,1767748244677,-2000.0,0.00028618,7]
[400621590,1767748244686,-405.14370208,0.00028672,2]
[400621591,1767748244695,-500.0,0.00028701,7]
[400621592,1767748244704,-2300.0,0.00028755,7]
[400621593,1767748244713,-1603.97,0.00028767,4]
[400621594,1767748244722,-166.0,0.00028767,14]
[400621595,1767748244731,-239.892767,0.00028767,60]
[400621596,1767748244740,-150.5,0.000289,31]
[400621597,1767748244749,-533.88981491,0.00028901,2]
[400621598,1767748244758,-1018.0,0.00029,2]
[400621600,1767748244767,-500.0,0.0002904,7]
[400621602,1767748244776,-950.0,0.00029041,5]
[400621604,1767748244785,-450.0,0.00029041,5]
[400621606,1767748244795,-450.0,0.00029041,5]
[400621608,1767748244804,-2300.0,0.00029095,7]
[400621609,1767748244812,-418.0,0.00029307,3]
[400621612,1767748244822,-553.64373807,0.00029449,2]
[400621614,1767748244831,-2000.0,0.00029494,7]
[400621615,1767748244841,-150.5,0.000295,30]
[400621617,1767748244851,-1050.0,0.00029589,5]
[400621620,1767748244860,-550.0,0.00029589,5]
[400621621,1767748244871,-550.0,0.00029589,5]
[400621623,1767748244880,-500.0,0.00029593,7]
[400621626,1767748244890,-587.58501506,0.00029734,7]
[400621628,1767748244900,-500.0,0.0002975,7]
[400621630,1767748244909,-500.0,0.0002982,7]
[400621632,1767748244922,-188.11386458,0.00029825,4]
[400621634,1767748244932,-18704.7,0.000299,2]
[400621636,1767748244942,-500.0,0.00029949,7]
[400621638,1767748244952,-3309.44532354,0.00029957,30]
[400621640,1767748244961,-1018.0,0.0003,7]
[400621642,1767748244971,-507.0,0.0003,14]
[400621644,1767748244980,-2300.0,0.00030044,7]
[400621646,1767748244989,-195.72,0.000301,7]
[400621648,1767748244998,-240.34,0.000301,7]
[400621650,1767748245008,-2089.8,0.000301,14]
[400621652,1767748245017,-250.0,0.000301,7]
[400621654,1767748245026,-250.0,0.000301,7]
[400621656,1767748245035,-2874.83428113,0.000301,7]
[400621658,1767748245045,-1603.97,0.00030136,6]
[400621660,1767748245054,-1150.0,0.00030137,5]
[400621662,1767748245062,-500.0,0.00030137,15]
[400621664,1767748245072,-650.0,0.00030137,5]
[400621666,1767748245081,-650.0,0.00030137,5]
[400621668,1767748245090,-302.39,0.00030137,7]
[400621670,1767748245099,-7840.45558332,0.00030185,2]
[400621672,1767748245109,-2300.0,0.00030286,7]
[400621674,1767748245118,-2000.0,0.00030294,10]
[400621676,1767748245127,-2362.32,0.000303,7]
[400621678,1767748245137,-2000.0,0.00030303,10]
[400621681,1767748245146,-7782.06328201,0.00030306,2]
[400621683,1767748245155,-2000.0,0.00030312,10]
[400621685,1767748245164,-2000.0,0.00030312,10]
[400621687,1767748245174,-2300.0,0.00030326,7]
[400621689,1767748245182,-2000.0,0.00030369,7]
[400621691,1767748245192,-507.0,0.00030411,14]
[400621693,1767748245201,-2300.0,0.00030457,7]
[400621695,1767748245211,-1000.0,0.00030591,30]
[400621697,1767748245220,-1000.0,0.00030591,30]
[400621699,1767748245229,-1000.0,0.00030591,30]
[400621701,1767748245239,-995.3526357,0.00030612,7]
[400621703,1767748245249,-435.03135224,0.00030672,2]
[400621705,1767748245259,-1297.73266776,0.00030685,5]
[400621707,1767748245268,-500.0,0.00030685,15]
[400621709,1767748245278,-507.0,0.00030685,14]
[400621711,1767748245287,-750.0,0.00030685,5]
[400621713,1767748245296,-750.0,0.00030685,5]
[400621715,1767748245305,-169.0,0.0003074,42]
[400621717,1767748245315,-300.0,0.0003074,2]
[400621719,1767748245324,-2300.0,0.00030799,7]
[400621721,1767748245333,-569.05,0.000309,2]
[400621723,1767748245343,-418.0,0.00030937,4]
[400621725,1767748245352,-689.26,0.00030958,30]
[400621727,1767748245362,-507.0,0.00030959,14]
[400621728,1767748245371,-172.60461299,0.00031,120]
[400621730,1767748245381,-188.78673029,0.00031,120]
[400621732,1767748245391,-193.11075698,0.00031,120]
[400621735,1767748245402,-172.33135591,0.00031,120]
[400621736,1767748245412,-198.36643638,0.00031,120]
[400621738,1767748245422,-163.4725449,0.00031,120]
[400621740,1767748245432,-163.65081324,0.00031,120]
[400621742,1767748245442,-721.64697953,0.00031,120]
[400621745,1767748245455,-185.65429275,0.00031,120]
[400621747,1767748245464,-194.20318295,0.00031,120]
[400621749,1767748245474,-1018.0,0.00031,7]
[400621751,1767748245484,-157.17127242,0.00031187,10]
[400621753,1767748245493,-507.0,0.00031233,14]
[400621755,1767748245503,-500.0,0.00031233,15]
[400621757,1767748245512,-850.0,0.00031233,5]
[400621759,1767748245523,-2000.0,0.00031245,7]
[400621761,1767748245533,-270.216,0.00031354,2]
[400621763,1767748245543,-250.041,0.00031354,2]
[400621765,1767748245552,-150.448,0.00031354,2]
[400621767,1767748245561,-151.389,0.00031354,2]
[400621769,1767748245570,-250.0,0.00031354,2]
[400621771,1767748245579,-267.158,0.00031354,2]
[400621772,1767748245588,-2145.0,0.00031354,2]
[400621774,1767748245597,-1365.0,0.00031354,2]
[400621776,1767748245606,-628.0,0.00031354,2]
[400621778,1767748245616,-3637.68501839,0.00031397,32]
[400621780,1767748245625,-417.0,0.00031412,2]
[400621782,1767748245634,-714.0,0.00031412,2]
[400621784,1767748245643,-194.752,0.00031412,2]
[400621786,1767748245653,-689.26,0.00031506,31]
[400621788,1767748245663,-1603.97,0.00031506,8]
[400621790,1767748245672,-507.0,0.00031507,14]
[400621792,1767748245682,-5535.4719947,0.00031559,2]
[400621794,1767748245691,-738.37742996,0.0003162,4]
[400621796,1767748245701,-507.0,0.00031644,14]
[400621798,1767748245711,-500.0,0.00031781,15]
[400621800,1767748245720,-950.0,0.00031781,5]
[400621802,1767748245729,-18704.7,0.000318,2]
[400621804,1767748245738,-193.11075698,0.000319,120]
[400621806,1767748245748,-172.33135591,0.000319,120]
[400621808,1767748245758,-198.36643638,0.000319,120]
[400621810,1767748245767,-163.4725449,0.000319,120]
[400621812,1767748245776,-163.65081324,0.000319,120]
[400621814,1767748245786,-721.64697953,0.000319,120]
[400621816,1767748245795,-185.65429275,0.000319,120]
[400621818,1767748245805,-194.20318295,0.000319,120]
[400621820,1767748245815,-689.26,0.00032054,32]
[400621822,1767748245824,-157.17127242,0.00032074,10]
[400621824,1767748245834,-2000.0,0.0003212,7]
[400621826,1767748245844,-500.0,0.00032329,15]
[400621828,1767748245854,-1050.0,0.00032329,5]
[400621830,1767748245863,-679.0,0.00032361,30]
[400621832,1767748245873,-985.5,0.00032362,30]
[400621834,1767748245883,-666.0,0.00032362,30]
[400621836,1767748245896,-2000.0,0.000324,120]
[400621838,1767748245905,-418.0,0.00032567,5]
[400621840,1767748245914,-7840.45558332,0.00032585,2]
[400621842,1767748245923,-689.26,0.00032602,33]
[400621844,1767748245932,-464.91900239,0.00032672,2]
[400621846,1767748245942,-3973.84948452,0.00032838,34]
[400621848,1767748245951,-1603.97,0.00032876,120]
[400621850,1767748245960,-500.0,0.00032877,30]
[400621852,1767748245969,-195.72,0.000329,7]
[400621854,1767748245979,-240.34,0.000329,7]
[400621856,1767748245988,-2089.8,0.000329,30]
[400621858,1767748245998,-2362.32,0.000329,7]
[400621860,1767748246007,-198.36643638,0.000329,120]
[400621862,1767748246016,-163.4725449,0.000329,120]
[400621864,1767748246026,-721.64697953,0.000329,120]
[400621866,1767748246035,-185.65429275,0.000329,120]
[400621868,1767748246044,-507.0,0.0003291,30]
[400621870,1767748246053,-2000.0,0.00032996,7]
[400621882,1767748246164,-689.26,0.0003315,34]
[400621885,1767748246174,-295.33605291,0.000332,117]
[400621886,1767748246183,-521.0,0.00033226,30]
[400621888,1767748246192,-38000.0,0.00033365,10]
[400621891,1767748246201,-38000.0,0.00033374,10]
[400621892,1767748246211,-38000.0,0.00033382,10]
[400621895,1767748246220,-38000.0,0.00033391,10]
[400621897,1767748246229,-38000.0,0.000334,10]
[400621898,1767748246239,-18798.88741347,0.000334,10]
[400621901,1767748246248,-500.0,0.00033425,30]
[400621902,1767748246258,-300.0,0.00033589,2]
[400621905,1767748246267,-300.0,0.00033589,2]
[400621907,1767748246277,-300.0,0.00033589,2]
[400621909,1767748246285,-300.0,0.00033589,2]
[400621910,1767748246295,-300.0,0.00033589,2]
[400621913,1767748246305,-300.0,0.00033589,2]
[400621914,1767748246314,-300.0,0.00033589,2]
[400621917,1767748246324,-300.0,0.00033589,2]
[400621919,1767748246334,-300.0,0.00033589,2]
[400621921,1767748246343,-300.0,0.00033589,2]
[400621923,1767748246353,-300.0,0.00033589,2]
[400621925,1767748246362,-300.0,0.00033589,2]
[400621927,1767748246371,-300.0,0.00033589,2]
[400621929,1767748246381,-300.0,0.00033589,2]
[400621931,1767748246390,-300.0,0.00033589,2]
[400621933,1767748246400,-300.0,0.00033589,2]
[400621935,1767748246409,-300.0,0.00033589,2]
[400621936,1767748246418,-300.0,0.00033589,2]
[400621938,1767748246427,-300.0,0.00033589,2]
[400621940,1767748246439,-300.0,0.00033589,2]
[400621942,1767748246452,-300.0,0.00033589,2]
[400621944,1767748246461,-300.0,0.00033589,2]
[400621946,1767748246471,-300.0,0.00033589,2]
[400621948,1767748246480,-300.0,0.00033589,2]
[400621950,1767748246491,-300.0,0.00033616,2]
[400621952,1767748246500,-300.0,0.00033616,2]
[400621954,1767748246509,-300.0,0.00033616,2]
[400621956,1767748246520,-300.0,0.00033616,2]
[400621959,1767748246529,-300.0,0.00033616,2]
[400621961,1767748246539,-300.0,0.00033616,2]
[400621963,1767748246549,-300.0,0.00033616,2]
[400621964,1767748246558,-300.0,0.00033616,2]
[400621966,1767748246567,-1000.0,0.0003365,30]
[400621969,1767748246577,-1000.0,0.0003365,30]
[400621970,1767748246587,-179.0,0.0003365,30]
[400621973,1767748246596,-689.26,0.00033698,35]
[400621975,1767748246606,-210.0,0.00033699,5]
[400621976,1767748246615,-666.0,0.00033786,30]
[400621978,1767748246624,-7782.06328201,0.00033844,2]
[400621980,1767748246634,-2000.0,0.00033871,7]
[400621983,1767748246643,-721.64697953,0.000339,120]
[400621984,1767748246653,-500.0,0.00033973,30]
[400621986,1767748246662,-155.0,0.00034027,65]
[400621988,1767748246672,-507.0,0.00034175,30]
[400621990,1767748246682,-507.0,0.00034175,30]
[400621992,1767748246691,-418.0,0.00034197,6]
[400621994,1767748246700,-689.26,0.00034246,36]
[400621996,1767748246710,-1603.97,0.00034246,120]
[400621998,1767748246720,-4317.58223311,0.00034278,36]
[400622000,1767748246730,-2145.0,0.00034354,2]
[400622002,1767748246738,-1365.0,0.00034354,2]
[400622004,1767748246747,-628.0,0.00034354,2]
[400622006,1767748246757,-417.0,0.00034412,2]
[400622008,1767748246767,-714.0,0.00034412,2]
[400622010,1767748246776,-178.0,0.00034412,2]
[400622012,1767748246786,-150.5,0.000345,120]
[400622015,1767748246796,-270.0,0.00034521,5]
[400622017,1767748246805,-250.0,0.000346,10]
[400622019,1767748246816,-494.80665254,0.00034672,120]
[400622021,1767748246826,-250.0,0.000347,10]
[400622022,1767748246835,-152.72,0.00034701,60]
[400622025,1767748246845,-173.03,0.00034701,60]
[400622026,1767748246855,-1517.76,0.00034711,60]
[400622028,1767748246864,-411.31,0.00034743,60]
[400622030,1767748246875,-2000.0,0.00034747,7]
[400622032,1767748246885,-689.26,0.00034794,37]
[400622034,1767748246895,-250.0,0.000348,10]
[400622036,1767748246905,-152.72,0.00034801,60]
[400622038,1767748246915,-173.03,0.00034801,60]
[400622041,1767748246924,-411.31162415,0.00034843,60]
[400622043,1767748246933,-721.64697953,0.000349,120]
[400622045,1767748246943,-250.0,0.000349,10]
[400622047,1767748246953,-152.72,0.00034901,60]
[400622049,1767748246962,-173.03522826,0.00034901,60]
[400622051,1767748246971,-1517.76,0.00034911,60]
[400622052,1767748246981,-1581.01,0.00034911,60]
[400622055,1767748246991,-7840.45558332,0.00034984,2]
[400622057,1767748247000,-18704.7,0.00035,14]
[400622058,1767748247009,-366.171963,0.00035,10]
[400622060,1767748247019,-1424.4789337,0.00035,120]
[400622062,1767748247028,-152.72,0.00035001,60]
[400622064,1767748247038,-1517.76,0.00035011,60]
[400622067,1767748247048,-152.72,0.00035101,60]
[400622068,1767748247060,-1517.76,0.00035111,60]
[400622070,1767748247071,-1581.01,0.00035111,60]
[400622072,1767748247080,-507.0,0.00035125,30]
[400622075,1767748247090,-152.72,0.00035201,60]
[400622077,1767748247099,-1517.76,0.00035211,60]
[400622078,1767748247108,-1581.01,0.00035211,60]
[400622080,1767748247118,-152.72,0.00035301,60]
[400622082,1767748247127,-1517.76,0.00035311,60]
[400622084,1767748247137,-1581.01,0.00035311,60]
[400622086,1767748247149,-689.26,0.00035342,38]
[400622089,1767748247159,-330.0,0.00035342,5]
[400622091,1767748247168,-152.72,0.00035401,60]
[400622093,1767748247178,-1517.76,0.00035411,60]
[400622095,1767748247187,-507.0,0.00035441,30]
[400622096,1767748247195,-152.72,0.00035501,60]
[400622099,1767748247205,-1517.76,0.00035511,60]
[400622101,1767748247214,-1581.01,0.00035511,60]
[400622103,1767748247224,-2000.0,0.00035572,15]
[400622105,1767748247233,-152.72,0.00035601,60]
[400622107,1767748247243,-1517.76,0.00035611,60]
[400622109,1767748247251,-1581.01,0.00035611,60]
[400622111,1767748247261,-1603.97,0.00035616,120]
[400622113,1767748247270,-180.58134689,0.00035616,2]
[400622115,1767748247279,-2000.0,0.00035622,7]
[400622117,1767748247288,-2362.32,0.000357,7]
[400622119,1767748247297,-152.72,0.00035701,60]
[400622121,1767748247306,-1517.76,0.00035711,60]
[400622123,1767748247315,-1581.01,0.00035711,60]
[400622125,1767748247326,-4668.56437398,0.00035719,37]
[400622127,1767748247335,-151.0,0.00035719,31]
[400622129,1767748247345,-151.0,0.00035719,31]
[400622131,1767748247354,-151.0,0.00035719,31]
[400622133,1767748247363,-151.0,0.00035719,31]
[400622135,1767748247372,-152.72,0.00035801,60]
[400622137,1767748247381,-1517.76,0.00035811,60]
[400622139,1767748247390,-1581.01,0.00035811,60]
[400622141,1767748247399,-1000.0,0.00035813,14]
[400622143,1767748247409,-418.0,0.00035826,30]
[400622145,1767748247419,-689.26,0.0003589,39]
[400622147,1767748247428,-195.72,0.000359,7]
[400622149,1767748247439,-240.34,0.000359,7]
[400622151,1767748247451,-2089.8,0.000359,30]
[400622153,1767748247460,-1326.666,0.000359,60]
[400622155,1767748247470,-1326.666,0.000359,60]
[400622157,1767748247480,-1326.66,0.000359,60]
[400622159,1767748247490,-152.72,0.00035901,60]
[400622161,1767748247500,-1517.76,0.00035911,60]
[400622163,1767748247509,-600.0,0.00035958,2]
[400622165,1767748247520,-152.72,0.00036001,60]
[400622167,1767748247529,-1517.76,0.00036011,60]
[400622169,1767748247539,-507.0,0.00036074,30]
[400622171,1767748247548,-152.72,0.00036101,60]
[400622173,1767748247558,-1581.01,0.00036111,60]
[400622175,1767748247570,-390.0,0.00036164,5]
[400622177,1767748247579,-152.72,0.00036201,60]
[400622179,1767748247589,-1517.76,0.00036211,60]
[400622181,1767748247599,-1581.01,0.00036211,60]
[400622183,1767748247609,-166.0,0.00036247,30]
[400622185,1767748247619,-152.72,0.00036301,60]
[400622187,1767748247628,-500.0,0.00036302,13]
[400622189,1767748247637,-1517.76,0.00036311,60]
[400622191,1767748247646,-1581.01,0.00036311,60]
[400622193,1767748247656,-2296.83091399,0.00036332,2]
[400622195,1767748247668,-600.0,0.00036332,2]
[400622197,1767748247677,-222.27510074,0.00036383,8]
[400622199,1767748247687,-569.05,0.000364,2]
[400622201,1767748247696,-18704.7,0.000364,14]
[400622203,1767748247705,-2600.0,0.000364,31]
[400622205,1767748247714,-151.0,0.000364,31]